bitfinex-derivatives/quotes_SOLF0:USTF0_20250215
["timestamp","ask_amount","ask_price","bid_price","bid_amount"]
[1739581391773,7.92292912,198.48,198.4,7.92292912]
[1739581391974,7.95774688,198.46,198.42,0.0350972]
[1739581392271,7.92292912,198.46,198.38,7.92292912]
[1739581392475,7.95855813,198.46,198.42,0.0383768]
[1739581393368,0.03562901,198.46,198.42,0.0383768]
[1739581393769,0.03562901,198.46,198.42,7.96130592]
[1739581394675,0.03562901,198.46,198.42,0.0383768]
[1739581394871,5.0385,198.45,198.42,0.0383768]
[1739581395373,0.03562901,198.46,198.42,7.96130592]
[1739581396974,5.0385,198.45,198.42,7.96130592]
[1739581397176,0.03562901,198.46,198.42,7.96130592]
[1739581397378,0.03562901,198.46,198.42,0.0383768]
[1739581398379,0.03562901,198.46,198.42,7.96130592]
[1739581399273,5.0383,198.45,198.42,7.96130592]
[1739581399478,0.03562901,198.46,198.42,7.96130592]
[1739581399781,5.07362901,198.46,198.42,7.96130592]
[1739581400185,5.07362901,198.46,198.44,7.92292912]
[1739581402679,0.03562901,198.46,198.44,7.92292912]
[1739581404783,5.0388,198.43,198.42,0.0383768]
[1739581405784,7.92292912,198.44,198.42,0.0383768]
[1739581407681,12.96142912,198.44,198.42,0.0383768]
[1739581407889,7.92292912,198.44,198.42,0.0383768]
[1739581409986,5.0388,198.43,198.42,0.0383768]
[1739581411288,7.92292912,198.44,198.42,0.0383768]
[1739581412590,7.92292912,198.44,198.39,5.0396]
[1739581412790,3.0799,198.45,198.37,5.0403]
[1739581412791,7.92292912,198.42,198.37,5.0403]
[1739581412987,12.96202912,198.42,198.37,5.0403]
[1739581413290,7.92292912,198.42,198.38,5.0398]
[1739581413890,7.95872545,198.42,198.38,5.07404027]
[1739581414292,7.95872545,198.42,198.41,5.0393]
[1739581414486,0.03579633,198.42,198.41,5.0393]
[1739581415791,7.95872545,198.42,198.38,0.03424027]
[1739581415992,7.92292912,198.4,198.38,0.03424027]
[1739581416387,7.92292912,198.38,198.31,7.92292912]
[1739581416791,7.92292912,198.36,198.29,7.92292912]
[1739581417384,5.041,198.35,198.31,5.0417]
[1739581417584,0.03748598,198.34,198.31,0.03606506]
[1739581418093,7.9604151,198.34,198.31,0.03606506]
[1739581418693,12.96452912,198.32,198.31,0.03606506]
[1739581419992,7.92292912,198.32,198.31,0.03606506]
[1739581421291,0.03748598,198.34,198.31,0.03606506]
[1739581421487,0.03748598,198.34,198.31,7.95899418]
[1739581421693,0.03748598,198.34,198.33,5.0413]
[1739581421984,0.03748598,198.34,198.33,12.96422912]
[1739581422189,7.92292912,198.42,198.37,5.0402]
[1739581422190,12.96212912,198.42,198.37,5.0402]
[1739581422588,12.96212912,198.42,198.35,7.92292912]
[1739581422793,7.92292912,198.42,198.35,7.92292912]
[1739581423393,0.03708186,198.4,198.37,0.03686404]
[1739581426499,5.07688186,198.4,198.37,0.03686404]
[1739581426699,0.03708186,198.4,198.37,0.03686404]
[1739581428907,0.03708186,198.4,198.39,5.0398]
[1739581429707,0.03708186,198.4,198.37,0.03686404]
[1739581431517,5.0398,198.39,198.37,0.03686404]
[1739581433215,5.07668186,198.4,198.37,0.03686404]
[1739581433909,0.03708186,198.4,198.37,0.03686404]
[1739581435616,5.04,198.38,198.37,0.03686404]
[1739581436717,0.03708186,198.4,198.37,0.03686404]
[1739581437418,0.03708186,198.4,198.38,5.04]
[1739581438421,0.03708186,198.4,198.39,5.0398]
[1739581440815,0.03708186,198.4,198.37,0.03686404]
[1739581441017,0.03708186,198.4,198.38,5.04]
[1739581441219,0.03708186,198.4,198.37,0.03686404]
[1739581441416,0.03708186,198.4,198.38,5.04]
[1739581442021,0.03708186,198.4,198.37,0.03686404]
[1739581442620,0.03708186,198.4,198.37,5.07706404]
[1739581443619,5.07658186,198.4,198.37,0.03686404]
[1739581444121,0.03708186,198.4,198.37,0.03686404]
[1739581444313,0.03708186,198.4,198.37,5.07716404]
[1739581444920,0.03708186,198.4,198.37,0.03686404]
[1739581445616,7.90958857,198.38,198.37,0.03686404]
[1739581445818,12.94958857,198.38,198.37,0.03686404]
[1739581446521,7.90958857,198.38,198.37,0.03686404]
[1739581448122,12.94958857,198.38,198.37,0.03686404]
[1739581450322,7.90958857,198.38,198.37,0.03686404]
[1739581450920,12.94958857,198.38,198.37,0.03686404]
[1739581452122,7.94667043,198.4,198.37,0.03686404]
[1739581452318,0.03708186,198.4,198.37,0.03686404]
[1739581452822,0.03708186,198.4,198.38,5.04]
[1739581453722,0.03708186,198.4,198.37,0.03686404]
[1739581453920,0.03708186,198.4,198.37,5.07716404]
[1739581455026,7.94667043,198.4,198.37,0.03686404]
[1739581455725,12.94958857,198.38,198.37,0.03686404]
[1739581465424,5.04,198.38,198.37,0.03686404]
[1739581466718,5.0398,198.39,198.37,0.03686404]
[1739581467827,7.94667043,198.4,198.37,0.03686404]
[1739581468023,0.03708186,198.4,198.37,0.03686404]
[1739581469030,0.03708186,198.4,198.38,5.04]
[1739581470225,0.03708186,198.4,198.39,5.0398]
[1739581475629,0.03708186,198.4,198.37,0.03686404]
[1739581479032,5.0398,198.39,198.37,0.03686404]
[1739581480035,7.94667043,198.4,198.37,0.03686404]
[1739581480236,5.04,198.38,198.37,0.03686404]
[1739581481839,12.94958857,198.38,198.37,0.03686404]
[1739581482036,7.90958857,198.38,198.31,5.0418]
[1739581482241,7.90958857,198.36,198.27,7.90958857]
[1739581482739,7.90958857,198.32,198.25,37.67448148]
[1739581482941,7.90958857,198.3,198.23,7.90958857]
[1739581483143,7.94332963,198.3,198.27,0.032991]
[1739581485435,7.90958857,198.28,198.27,0.032991]
[1739581485636,7.90958857,198.28,198.2,5.0444]
[1739581485836,7.90958857,198.28,198.19,7.90958857]
[1739581486040,7.90958857,198.28,198.21,7.90958857]
[1739581486240,12.95238857,198.28,198.21,7.90958857]
[1739581486837,0.0335606,198.26,198.23,5.08049958]
[1739581487634,0.0335606,198.26,198.23,0.03669958]
[1739581487841,0.0335606,198.26,198.23,7.94628815]
[1739581489043,0.0335606,198.26,198.25,12.95288857]
[1739581490543,0.0335606,198.26,198.23,0.03669958]
[1739581491041,0.0335606,198.26,198.23,7.94628815]
[1739581491247,0.0335606,198.26,198.25,5.0433]
[1739581491642,0.0335606,198.26,198.23,12.99008815]
[1739581491949,0.0335606,198.26,198.23,0.03669958]
[1739581492249,5.0767606,198.26,198.23,0.03669958]
[1739581492441,0.0335606,198.26,198.23,0.03669958]
[1739581493045,5.0436,198.25,198.23,0.03669958]
[1739581495652,5.0436,198.24,198.23,0.03669958]
[1739581496354,0.0335606,198.26,198.23,0.03669958]
[1739581496552,5.0434,198.25,198.23,0.03669958]
[1739581497153,0.0335606,198.26,198.23,0.03669958]
[1739581497655,0.0335606,198.26,198.23,7.94628815]
[1739581497956,0.0335606,198.26,198.24,5.0436]
[1739581498455,0.0335606,198.26,198.23,12.99008815]
[1739581498655,0.0335606,198.26,198.23,7.94628815]
[1739581500057,0.0335606,198.26,198.23,12.99008815]
[1739581500457,0.0335606,198.26,198.24,5.0435]
[1739581500751,0.0335606,198.26,198.23,0.03669958]
[1739581501653,0.0335606,198.26,198.24,5.0434]
[1739581501860,0.0335606,198.26,198.25,7.90958857]
[1739581502056,0.0335606,198.26,198.25,12.95288857]
[1739581503056,6.06e-05,198.26,198.25,12.95288857]
[1739581504755,6.06e-05,198.26,198.25,5.0433]
[1739581504954,6.06e-05,198.26,198.23,5.08049958]
[1739581505149,6.06e-05,198.26,198.23,0.03669958]
[1739581505357,7.90964917,198.26,198.23,0.03669958]
[1739581505756,12.95274917,198.26,198.23,0.03669958]
[1739581506461,5.0433,198.25,198.23,0.03669958]
[1739581507658,6.06e-05,198.26,198.15,12.37368232]
[1739581507958,5.0441,198.23,198.18,5.0451]
[1739581508660,5.0441,198.23,198.15,12.37368232]
[1739581508860,0.03721369,198.22,198.19,5.07863022]
[1739581509262,0.03721369,198.22,198.19,0.03383022]
[1739581509456,0.03721369,198.22,198.21,5.0444]
[1739581510462,0.03721369,198.22,198.19,0.03383022]
[1739581511761,5.08131369,198.22,198.19,0.03383022]
[1739581512369,5.0444,198.21,198.19,0.03383022]
[1739581512558,0.03721369,198.22,198.19,0.03383022]
[1739581513564,5.0446,198.2,198.19,0.03383022]
[1739581519767,0.03721369,198.22,198.19,0.03383022]
[1739581520269,5.0446,198.2,198.19,0.03383022]
[1739581522766,5.0455,198.17,198.09,13.95928232]
[1739581523871,1.5309,198.21,198.09,13.95928232]
[1739581524071,0.03794985,198.15,198.11,0.03420355]
[1739581524468,0.03794985,198.15,198.14,5.0461]
[1739581527974,0.03794985,198.15,198.14,12.9697257]
[1739581530173,0.03794985,198.15,198.12,7.9236257]
[1739581530378,0.03794985,198.15,198.11,5.08090355]
[1739581531176,5.0462,198.14,198.11,0.03420355]
[1739581531380,0.03794985,198.15,198.11,0.03420355]
[1739581531885,5.08384985,198.15,198.11,0.03420355]
[1739581532379,5.0462,198.14,198.11,5.08100355]
[1739581532582,5.0462,198.14,198.11,0.03420355]
[1739581533282,0.03794985,198.15,198.11,0.03420355]
[1739581535084,5.08394985,198.15,198.11,5.08100355]
[1739581535683,0.03794985,198.15,198.11,0.03420355]
[1739581535886,5.0462,198.14,198.11,0.03420355]
[1739581537682,5.0467,198.12,198.11,0.03420355]
[1739581539894,5.0474,198.1,198.05,5.0482]
[1739581540083,7.9236257,198.12,198.04,7.9236257]
[1739581540288,7.9236257,198.12,198.06,5.048]
[1739581540489,12.9705257,198.12,198.04,7.9236257]
[1739581540790,7.9236257,198.12,198.06,5.048]
[1739581540990,0.03554626,198.1,198.06,7.96147904]
[1739581542294,0.03554626,198.1,198.07,5.0479]
[1739581542593,0.03554626,198.1,198.06,7.96147904]
[1739581543092,0.03554626,198.1,198.08,5.0474]
[1739581543293,0.03554626,198.1,198.06,7.96147904]
[1739581543493,0.03554626,198.1,198.09,5.0474]
[1739581560909,4.626e-05,198.1,198.09,5.0474]
[1739581563905,16.1472257,198.2,198.09,5.0474]
[1739581564110,16.1472257,198.2,198.16,5.0454]
[1739581564815,1.5683,198.2,198.16,7.9236257]
[1739581565113,1.60113705,198.2,198.16,0.03329219]
[1739581566012,6.64583705,198.2,198.16,5.07889219]
[1739581567416,1.60113705,198.2,198.17,5.0453]
[1739581567914,1.60113705,198.2,198.16,0.03329219]
[1739581568115,0.03283705,198.2,198.16,7.95691789]
[1739581569114,0.03283705,198.2,198.19,5.0449]
[1739581578519,3.705e-05,198.2,198.19,5.0449]
[1739581587023,7.9236257,198.34,198.29,5.0423]
[1739581587229,7.9236257,198.34,198.27,7.9236257]
[1739581587728,7.9236257,198.34,198.29,5.0421]
[1739581588130,5.0414,198.33,198.29,5.0421]
[1739581588329,0.03240179,198.33,198.3,5.07437789]
[1739581588825,5.07370179,198.33,198.3,0.03237789]
[1739581589031,7.9236257,198.32,198.3,0.03237789]
[1739581590432,12.9652257,198.32,198.3,0.03237789]
[1739581591233,5.0418,198.31,198.3,0.03237789]
[1739581592632,5.0431,198.26,198.22,5.0441]
[1739581592830,7.9236257,198.27,198.22,5.0441]
[1739581593025,5.0435,198.25,198.19,7.9236257]
[1739581593233,5.0435,198.25,198.21,5.0443]
[1739581593630,1.5316,198.35,198.23,7.9236257]
[1739581593835,1.5316,198.35,198.32,7.9236257]
[1739581594235,1.56787037,198.35,198.32,7.95837166]
[1739581594436,1.56787037,198.35,198.32,12.99987166]
[1739581595228,1.56787037,198.35,198.32,0.03474596]
[1739581595934,1.56787037,198.35,198.32,5.07624596]
[1739581596137,1.56787037,198.35,198.32,0.03474596]
[1739581597037,1.56787037,198.35,198.33,5.0413]
[1739581597535,1.56787037,198.35,198.32,0.03474596]
[1739581597727,1.56787037,198.35,198.33,5.0413]
[1739581599337,0.03627037,198.35,198.34,5.0411]
[1739581603137,0.03627037,198.35,198.33,5.0413]
[1739581603343,0.03627037,198.35,198.32,7.95837166]
[1739581604342,0.03627037,198.35,198.34,12.9647257]
[1739581604843,7.037e-05,198.35,198.34,12.9647257]
[1739581605340,7.037e-05,198.35,198.34,5.0411]
[1739581606245,7.037e-05,198.35,198.34,12.9647257]
[1739581610450,7.037e-05,198.35,198.32,0.03474596]
[1739581612044,5.04097037,198.35,198.32,0.03474596]
[1739581612240,7.037e-05,198.35,198.32,0.03474596]
[1739581613350,7.037e-05,198.35,198.32,5.07604596]
[1739581613545,7.037e-05,198.35,198.32,0.03474596]
[1739581614043,7.037e-05,198.35,198.34,12.9647257]
[1739581615252,1.6359,198.44,198.41,5.0391]
[1739581616153,1.6359,198.44,198.42,5.039]
[1739581616352,0.03468261,198.43,198.4,7.9236257]
[1739581616652,0.03468261,198.43,198.39,0.03317129]
[1739581616855,0.03468261,198.43,198.4,5.0395]
[1739581617647,0.03468261,198.43,198.39,5.07297129]
[1739581618658,0.03468261,198.43,198.39,0.03317129]
[1739581618954,7.9236257,198.4,198.32,7.9236257]
[1739581620244,0.03677429,198.38,198.34,0.03565228]
[1739581620443,7.9236257,198.36,198.28,7.9236257]
[1739581620655,7.9236257,198.34,198.26,121.0836257]
[1739581621047,7.9236257,198.34,198.28,5.0426]
[1739581621249,9.4323257,198.36,198.28,7.9236257]
[1739581621658,0.03839875,198.34,198.3,0.03844787]
[1739581621853,0.03839875,198.34,198.3,7.96207357]
[1739581622052,0.03839875,198.34,198.32,7.9236257]
[1739581622552,0.03839875,198.34,198.3,7.96207357]
[1739581624457,0.03839875,198.34,198.3,0.03844787]
[1739581624646,7.96202445,198.34,198.3,0.03844787]
[1739581625055,5.0418,198.31,198.3,0.03844787]
[1739581625350,0.03839875,198.34,198.3,0.03844787]
[1739581625550,5.07969875,198.34,198.3,0.03844787]
[1739581625750,0.03839875,198.34,198.3,0.03844787]
[1739581625946,0.03839875,198.34,198.31,5.0418]
[1739581626948,0.03839875,198.34,198.3,7.96207357]
[1739581627155,0.03839875,198.34,198.32,7.9236257]
[1739581628452,0.03839875,198.34,198.33,5.0413]
[1739581632960,0.03839875,198.34,198.3,12.39257926]
[1739581633154,0.03839875,198.34,198.31,5.0416]
[1739581633348,0.03839875,198.34,198.3,12.39257926]
[1739581634349,0.03839875,198.34,198.33,5.0413]
[1739581636060,1.5547,198.43,198.37,5.0401]
[1739581636475,6.5936,198.43,198.37,5.0401]
[1739581637265,5.0396,198.4,198.38,0.03775863]
[1739581637568,0.0360991,198.42,198.38,0.03775863]
[1739581637971,5.0398,198.39,198.38,0.03775863]
[1739581638972,5.0398,198.39,198.3,12.35413139]
[1739581638973,0.0360991,198.42,198.3,12.35413139]
[1739581639269,12.35413139,198.42,198.3,12.35413139]
[1739581639667,5.0402,198.38,198.33,5.0411]
[1739581639871,5.0402,198.38,198.3,12.35413139]
[1739581640172,0.03478595,198.36,198.35,5.0407]
[1739581640470,1.5547,198.43,198.3,12.35413139]
[1739581640674,0.03630718,198.37,198.34,0.03503684]
[1739581641271,0.03630718,198.37,198.36,5.0404]
[1739581646279,1.5785,198.44,198.42,5.0389]
[1739581646484,1.5785,198.44,198.36,12.35413139]
[1739581647388,0.032056,198.42,198.38,0.03268095]
[1739581648088,0.032056,198.42,198.39,5.0396]
[1739581648989,0.032056,198.42,198.38,0.03268095]
[1739581649884,5.0395,198.41,198.38,0.03268095]
[1739581650086,0.032056,198.42,198.38,0.03268095]
[1739581651590,7.90688007,198.41,198.38,0.03268095]
[1739581652088,5.0395,198.4,198.38,0.03268095]
[1739581653691,7.90688007,198.41,198.38,0.03268095]
[1739581654791,12.94628007,198.41,198.38,0.03268095]
[1739581656694,7.90688007,198.41,198.38,0.03268095]
[1739581657294,0.032056,198.42,198.38,0.03268095]
[1739581657897,5.0393,198.41,198.38,5.07268095]
[1739581658395,0.032056,198.42,198.32,7.90688007]
[1739581658396,7.90688007,198.39,198.32,7.90688007]
[1739581658598,7.90688007,198.37,198.3,7.90688007]
[1739581659500,5.0408,198.36,198.31,5.0418]
[1739581659700,0.03652869,198.35,198.32,0.03189247]
[1739581659896,0.03652869,198.35,198.28,7.90688007]
[1739581660199,0.03652869,198.35,198.32,0.03544851]
[1739581661499,0.03652869,198.35,198.33,5.0411]
[1739581662097,0.03652869,198.35,198.32,0.03544851]
[1739581662298,0.03652869,198.35,198.34,5.0411]
[1739581665393,0.03652869,198.35,198.34,12.94798007]
[1739581667103,0.03652869,198.35,198.34,5.0411]
[1739581667903,0.03652869,198.35,198.32,7.94232858]
[1739581668098,0.03652869,198.35,198.32,0.03544851]
[1739581668298,5.0411,198.34,198.32,0.03544851]
[1739581669996,5.07732869,198.35,198.32,0.03544851]
[1739581670202,0.03652869,198.35,198.32,0.03544851]
[1739581670602,5.0413,198.34,198.32,0.03544851]
[1739581671307,5.07732869,198.35,198.32,0.03544851]
[1739581672703,0.03652869,198.35,198.32,0.03544851]
[1739581673207,0.03652869,198.35,198.34,5.0411]
[1739581674811,0.03652869,198.35,198.33,5.0413]
[1739581675004,0.03652869,198.35,198.32,7.94232858]
[1739581675610,0.03652869,198.35,198.33,5.0413]
[1739581680212,0.03652869,198.35,198.32,0.03544851]
[1739581681313,0.03652869,198.35,198.32,7.94232858]
[1739581681717,0.03652869,198.35,198.34,5.0411]
[1739581682917,0.03652869,198.35,198.32,0.03544851]
[1739581683612,7.94340876,198.35,198.32,0.03544851]
[1739581683819,5.0411,198.34,198.32,0.03544851]
[1739581684214,0.03652869,198.35,198.32,0.03544851]
[1739581684414,5.07752869,198.35,198.32,0.03544851]
[1739581684820,0.03652869,198.35,198.32,0.03544851]
[1739581685025,7.94340876,198.35,198.32,0.03544851]
[1739581685226,9.52100876,198.35,198.32,0.03544851]
[1739581685916,5.0413,198.33,198.32,0.03544851]
[1739581686521,9.52100876,198.35,198.32,0.03544851]
[1739581686721,5.0411,198.34,198.32,0.03544851]
[1739581686921,9.52100876,198.35,198.32,0.03544851]
[1739581687824,5.0413,198.34,198.32,0.03544851]
[1739581688325,5.0413,198.33,198.32,0.03544851]
[1739581688724,7.90688007,198.31,198.24,7.90688007]
[1739581688926,7.90688007,198.31,198.22,7.90688007]
[1739581689730,5.07856755,198.28,198.25,0.03596327]
[1739581690229,0.03596755,198.28,198.25,5.07906327]
[1739581690631,0.03596755,198.28,198.25,0.03596327]
[1739581690831,0.03596755,198.28,198.26,5.043]
[1739581691226,0.03596755,198.28,198.25,0.03596327]
[1739581692233,0.03596755,198.28,198.26,5.0431]
[1739581692936,0.03596755,198.28,198.27,5.0428]
[1739581694134,2.9958,198.36,198.26,7.90688007]
[1739581694326,1.4764,198.36,198.33,5.0413]
[1739581694730,7.90688007,198.39,198.33,12.94818007]
[1739581695333,5.07573116,198.38,198.34,0.03280638]
[1739581695638,0.03543116,198.38,198.34,5.07380638]
[1739581695837,0.03543116,198.38,198.34,0.03280638]
[1739581696032,0.03543116,198.38,198.35,7.90688007]
[1739581696240,0.03543116,198.38,198.37,7.90688007]
[1739581696439,0.03543116,198.38,198.37,12.94718007]
[1739581702038,0.03543116,198.38,198.37,7.90688007]
[1739581702840,0.03543116,198.38,198.35,12.94768007]
[1739581703040,0.03543116,198.38,198.35,7.90688007]
[1739581703245,0.03543116,198.38,198.35,12.94748007]
[1739581703739,0.03543116,198.38,198.35,7.90688007]
[1739581704540,0.03543116,198.38,198.36,5.0404]
[1739581704745,0.03543116,198.38,198.37,7.90688007]
[1739581705241,0.03543116,198.38,198.37,12.94718007]
[1739581708845,0.03543116,198.38,198.35,12.94748007]
[1739581709244,0.03543116,198.38,198.35,7.90688007]
[1739581710046,0.03543116,198.38,198.37,5.0403]
[1739581711247,0.03543116,198.38,198.37,12.94718007]
[1739581712246,0.03543116,198.38,198.36,5.0405]
[1739581713247,0.03543116,198.38,198.37,5.0403]
[1739581713647,0.03543116,198.38,198.37,12.94718007]
[1739581716552,7.90688007,198.45,198.37,7.90688007]
[1739581716753,5.038,198.46,198.42,5.039]
[1739581717745,5.0755958,198.46,198.42,5.07551399]
[1739581718851,0.0375958,198.46,198.42,0.03651399]
[1739581719251,7.90688007,198.45,198.42,0.03651399]
[1739581719648,5.0392,198.42,198.38,5.04]
[1739581719854,7.90688007,198.43,198.35,7.90688007]
[1739581720855,0.03202871,198.41,198.37,5.07502312]
[1739581722451,0.03202871,198.41,198.38,5.04]
[1739581722647,0.03202871,198.41,198.37,0.03482312]
[1739581723053,0.03202871,198.41,198.39,5.0396]
[1739581724160,0.03202871,198.41,198.4,5.0395]
[1739581736168,2.871e-05,198.41,198.4,5.0395]
[1739581736471,3.0574,198.5,198.45,5.0381]
[1739581736664,8.0946,198.5,198.45,12.94498007]
[1739581737568,0.03489811,198.49,198.46,0.03856173]
[1739581739069,0.03489811,198.49,198.46,5.07646173]
[1739581740069,0.03489811,198.49,198.46,0.03856173]
[1739581740270,0.03489811,198.49,198.47,5.0376]
[1739581740964,0.03489811,198.49,198.47,7.90688007]
[1739581741368,0.03489811,198.49,198.48,5.0375]
[1739581741771,0.00069456,198.49,198.48,5.0375]
[1739581743470,0.00069456,198.49,198.47,7.90688007]
[1739581744672,4.6327,198.57,198.47,7.90688007]
[1739581744869,4.6327,198.57,198.53,7.90688007]
[1739581745571,3.0643,198.57,198.55,7.90688007]
[1739581745773,0.03451476,198.56,198.55,7.90688007]
[1739581746577,0.03451476,198.56,198.55,12.94258007]
[1739581746778,0.03451476,198.56,198.55,7.90688007]
[1739581749178,0.03451476,198.56,198.55,12.94258007]
[1739581755283,8.2102,198.63,198.55,7.90688007]
[1739581755579,8.2102,198.63,198.6,7.90688007]
[1739581756278,3.1765,198.63,198.6,7.90688007]
[1739581756477,3.21159049,198.63,198.6,7.94480334]
[1739581757174,8.24529049,198.63,198.6,7.94480334]
[1739581757880,3.21159049,198.63,198.6,7.94480334]
[1739581758971,8.24529049,198.63,198.6,7.94480334]
[1739581760488,3.21159049,198.63,198.6,7.94480334]
[1739581760782,3.21159049,198.63,198.6,12.97920334]
[1739581761580,8.24539049,198.63,198.6,7.94480334]
[1739581762576,5.0342,198.61,198.6,7.94480334]
[1739581762781,3.21159049,198.63,198.6,7.94480334]
[1739581764080,5.0341,198.62,198.6,7.94480334]
[1739581766077,3.21159049,198.63,198.43,205.0771]
[1739581766284,7.90688007,198.6,198.52,7.90688007]
[1739581767384,5.07245813,198.58,198.54,0.03655287]
[1739581768889,0.03745813,198.58,198.54,0.03655287]
[1739581770692,5.0357,198.55,198.54,0.03655287]
[1739581774300,7.90688007,198.56,198.5,7.90688007]
[1739581774697,1.5359,198.55,198.5,7.90688007]
[1739581775494,1.5359,198.55,198.51,0.03543547]
[1739581775999,5.036,198.54,198.51,0.03543547]
[1739581776609,1.5359,198.55,198.52,7.90688007]
[1739581777304,6.5718,198.55,198.52,7.90688007]
[1739581779511,1.5359,198.55,198.52,7.90688007]
[1739581779807,5.036,198.54,198.52,7.90688007]
[1739581782410,6.5717,198.55,198.52,7.90688007]
[1739581784211,5.0358,198.55,198.52,7.90688007]
[1739581785112,0.03745813,198.58,198.52,7.90688007]
[1739581785313,5.0355,198.56,198.52,12.94328007]
[1739581785513,0.03745813,198.58,198.54,7.90688007]
[1739581785812,0.03745813,198.58,198.54,12.94268007]
[1739581790206,5.07245813,198.58,198.54,12.94268007]
[1739581790715,5.0356,198.56,198.52,12.94318007]
[1739581795018,0.03745813,198.58,198.52,12.94318007]
[1739581795221,5.0353,198.57,198.52,12.94318007]
[1739581798420,5.0353,198.57,198.53,5.0362]
[1739581800722,0.03745813,198.58,198.54,7.90688007]
[1739581801419,5.0355,198.57,198.54,7.90688007]
[1739581801622,0.03745813,198.58,198.54,7.90688007]
[1739581803025,0.03745813,198.58,198.55,5.0356]
[1739581804223,0.03745813,198.58,198.54,7.90688007]
[1739581804525,5.07245813,198.58,198.54,12.94278007]
[1739581805824,0.03745813,198.58,198.54,7.90688007]
[1739581806123,5.0352,198.57,198.54,7.90688007]
[1739581809422,0.03745813,198.58,198.54,7.90688007]
[1739581809627,7.9443382,198.58,198.51,0.03543547]
[1739581810128,5.0359,198.55,198.51,0.03543547]
[1739581811732,5.0363,198.53,198.51,0.03543547]
[1739581811923,7.90688007,198.54,198.51,0.03543547]
[1739581812125,7.93901991,198.54,198.51,0.03543547]
[1739581812426,5.0365,198.52,198.51,0.03543547]
[1739581813827,7.90688007,198.52,198.44,7.90688007]
[1739581814532,5.0373,198.49,198.44,7.90688007]
[1739581815032,7.90688007,198.52,198.45,0.03714354]
[1739581815033,5.07203193,198.48,198.45,0.03714354]
[1739581815231,0.03453193,198.48,198.45,0.03714354]
[1739581815631,0.03453193,198.48,198.46,7.90688007]
[1739581815826,0.03453193,198.48,198.47,5.0378]
[1739581816932,0.03453193,198.48,198.46,7.90688007]
[1739581818034,0.03453193,198.48,198.46,12.94488007]
[1739581818434,0.03453193,198.48,198.46,7.90688007]
[1739581818637,0.03453193,198.48,198.47,5.0378]
[1739581829939,3.193e-05,198.48,198.47,5.0378]
[1739581831643,1.6263,198.58,198.53,5.0362]
[1739581831944,1.6263,198.58,198.52,7.90688007]
[1739581832651,0.03859308,198.57,198.53,0.03392189]
[1739581834049,0.03859308,198.57,198.53,5.06992189]
[1739581835250,0.03859308,198.57,198.53,0.03392189]
[1739581835451,5.0355,198.56,198.53,0.03392189]
[1739581837251,0.03859308,198.57,198.53,0.03392189]
[1739581837447,5.07389308,198.57,198.53,0.03392189]
[1739581838753,0.03859308,198.57,198.53,0.03392189]
[1739581838952,5.07379308,198.57,198.53,0.03392189]
[1739581839155,0.03859308,198.57,198.53,0.03392189]
[1739581840352,0.03859308,198.57,198.53,5.07012189]
[1739581841954,0.03859308,198.57,198.53,0.03392189]
[1739581842155,0.03859308,198.57,198.56,5.0355]
[1739581843956,0.03859308,198.57,198.54,7.90688007]
[1739581844158,0.03859308,198.57,198.55,5.0356]
[1739581845559,0.03859308,198.57,198.54,7.90688007]
[1739581845858,5.07399308,198.57,198.53,0.03392189]
[1739581847059,5.07399308,198.57,198.53,5.07012189]
[1739581847256,5.07399308,198.57,198.53,0.03392189]
[1739581847458,5.036,198.54,198.53,0.03392189]
[1739581848961,0.03859308,198.57,198.53,0.03392189]
[1739581850359,5.0357,198.56,198.53,0.03392189]
[1739581852164,0.03859308,198.57,198.54,5.036]
[1739581852665,0.03859308,198.57,198.53,0.03392189]
[1739581852865,0.03859308,198.57,198.54,12.94278007]
[1739581853461,0.03859308,198.57,198.54,7.90688007]
[1739581853664,0.03859308,198.57,198.53,0.03392189]
[1739581854163,5.07399308,198.57,198.53,5.07012189]
[1739581854864,0.03859308,198.57,198.53,5.07012189]
[1739581855261,0.03859308,198.57,198.54,7.90688007]
[1739581855461,0.03859308,198.57,198.55,5.0355]
[1739581856562,5.07389308,198.57,198.53,0.03392189]
[1739581856861,0.03859308,198.57,198.53,0.03392189]
[1739581857063,5.07389308,198.57,198.53,0.03392189]
[1739581857563,5.0355,198.56,198.53,0.03392189]
[1739581860070,5.07379308,198.57,198.53,0.03392189]
[1739581860571,0.03859308,198.57,198.53,0.03392189]
[1739581860772,5.0355,198.56,198.53,0.03392189]
[1739581861476,5.0358,198.55,198.53,0.03392189]
[1739581862575,5.036,198.54,198.53,0.03392189]
[1739581862772,1.55189308,198.57,198.53,0.03392189]
[1739581862773,3.10519308,198.57,198.53,0.03392189]
[1739581863172,5.0357,198.55,198.53,0.03392189]
[1739581863982,3.10519308,198.57,198.53,0.03392189]
[1739581864168,8.14049308,198.57,198.53,0.03392189]
[1739581864366,3.10519308,198.57,198.53,0.03392189]